[Event "Early-Titled-Tuesday-Blitz-August-29-2023"]
[Site "Chess.com"]
[Date "2023.08.29"]
[Round "6"]
[White "Chessbard1972"]
[Black "Sl4werThanYou"]
[Result "0-1"]
[WhiteElo "2546"]
[BlackElo "2731"]
[TimeControl "180+1"]
[EndTime "9:07:33 PDT"]
[Termination "Sl4werThanYou won by checkmate"]

1. d4 {[%clk 0:03:00.9]} 1... Nf6 {[%clk 0:02:12.8]} 2. c4 {[%clk 0:03:00.1]}
2... e6 {[%clk 0:02:12.2]} 3. Nf3 {[%clk 0:03:00.3]} 3... d5 {[%clk 0:02:12.6]}
4. Nc3 {[%clk 0:02:59.4]} 4... c5 {[%clk 0:02:10.2]} 5. cxd5 {[%clk 0:02:58.7]}
5... cxd4 {[%clk 0:02:10.3]} 6. Qxd4 {[%clk 0:02:55]} 6... exd5 {[%clk
0:02:10.1]} 7. Bg5 {[%clk 0:02:51.7]} 7... Be7 {[%clk 0:02:09.6]} 8. e3 {[%clk
0:02:50.1]} 8... O-O {[%clk 0:02:08.8]} 9. Bb5 {[%clk 0:02:47.3]} 9... h6 {[%clk
0:01:59.3]} 10. Bh4 {[%clk 0:02:46.3]} 10... a6 {[%clk 0:01:58.3]} 11. Ba4
{[%clk 0:02:44.9]} 11... Nc6 {[%clk 0:01:47]} 12. Qd3 {[%clk 0:02:40.6]} 12...
Qb6 {[%clk 0:01:35.3]} 13. O-O {[%clk 0:02:32.5]} 13... Rd8 {[%clk 0:01:07.8]}
14. Rfd1 {[%clk 0:02:20.9]} 14... Be6 {[%clk 0:01:01.3]} 15. Bb3 {[%clk
0:02:18.3]} 15... Ne4 {[%clk 0:00:50.5]} 16. Bxe7 {[%clk 0:02:15]} 16... Nxe7
{[%clk 0:00:34.6]} 17. Nxe4 {[%clk 0:02:13.1]} 17... dxe4 {[%clk 0:00:35.3]} 18.
Qxe4 {[%clk 0:02:13.1]} 18... Bxb3 {[%clk 0:00:35.9]} 19. axb3 {[%clk
0:02:10.6]} 19... Qxb3 {[%clk 0:00:32.6]} 20. Nd4 {[%clk 0:01:54.4]} 20... Qb4
{[%clk 0:00:30.9]} 21. h3 {[%clk 0:01:43.4]} 21... Nc6 {[%clk 0:00:13.5]} 22.
Rac1 {[%clk 0:01:23.7]} 22... Nxd4 {[%clk 0:00:12.7]} 23. exd4 {[%clk
0:01:22.4]} 23... Rd7 {[%clk 0:00:10.6]} 24. Rc2 {[%clk 0:01:14.4]} 24... Rad8
{[%clk 0:00:11.1]} 25. Rcd2 {[%clk 0:01:14.3]} 25... Qc4 {[%clk 0:00:11.6]} 26.
Qe3 {[%clk 0:01:09.6]} 26... Qd5 {[%clk 0:00:11.9]} 27. Rd3 {[%clk 0:01:05.9]}
27... h5 {[%clk 0:00:12.3]} 28. Qd2 {[%clk 0:01:04.4]} 28... g6 {[%clk
0:00:12.7]} 29. Qb4 {[%clk 0:00:59.2]} 29... Qe4 {[%clk 0:00:12.6]} 30. Qb6
{[%clk 0:00:51]} 30... Kg7 {[%clk 0:00:12.1]} 31. Qc5 {[%clk 0:00:43.1]} 31...
Qd5 {[%clk 0:00:11.9]} 32. Qxd5 {[%clk 0:00:41.5]} 32... Rxd5 {[%clk 0:00:12.8]}
33. R1d2 {[%clk 0:00:40.8]} 33... Kf6 {[%clk 0:00:12.1]} 34. f3 {[%clk
0:00:41.1]} 34... h4 {[%clk 0:00:12]} 35. Kf2 {[%clk 0:00:41.3]} 35... Kf5
{[%clk 0:00:12.6]} 36. Ke3 {[%clk 0:00:38.4]} 36... Re8+ {[%clk 0:00:12.7]} 37.
Kf2 {[%clk 0:00:38.7]} 37... Kf4 {[%clk 0:00:12.9]} 38. Rb3 {[%clk 0:00:34.2]}
38... b5 {[%clk 0:00:12.7]} 39. Rc3 {[%clk 0:00:34]} 39... Re7 {[%clk
0:00:12.3]} 40. Rc6 {[%clk 0:00:33.7]} 40... Re6 {[%clk 0:00:10]} 41. Rxe6
{[%clk 0:00:30.4]} 41... fxe6 {[%clk 0:00:10.9]} 42. Re2 {[%clk 0:00:29]} 42...
Rxd4 {[%clk 0:00:11.4]} 43. Rxe6 {[%clk 0:00:29]} 43... Rd2+ {[%clk 0:00:11.9]}
44. Ke1 {[%clk 0:00:29.4]} 44... Rxg2 {[%clk 0:00:11.3]} 45. b4 {[%clk
0:00:28.9]} 45... Kxf3 {[%clk 0:00:10.2]} 46. Rxa6 {[%clk 0:00:28.1]} 46... Rb2
{[%clk 0:00:10.8]} 47. Rxg6 {[%clk 0:00:27.1]} 47... Rxb4 {[%clk 0:00:11.4]} 48.
Kd2 {[%clk 0:00:26.7]} 48... Kf2 {[%clk 0:00:08.1]} 49. Kc3 {[%clk 0:00:26.8]}
49... Rf4 {[%clk 0:00:08]} 50. Kb3 {[%clk 0:00:20.3]} 50... Rf3+ {[%clk
0:00:08.2]} 51. Kb4 {[%clk 0:00:20.7]} 51... Rxh3 {[%clk 0:00:09.1]} 52. Kxb5
{[%clk 0:00:21.2]} 52... Rg3 {[%clk 0:00:09.8]} 53. Rf6+ {[%clk 0:00:20.7]}
53... Kg2 {[%clk 0:00:10.2]} 54. Kc4 {[%clk 0:00:20.3]} 54... h3 {[%clk
0:00:10.7]} 55. Ra6 {[%clk 0:00:19.8]} 55... h2 {[%clk 0:00:11.6]} 56. Ra2+
{[%clk 0:00:19.6]} 56... Kh3 {[%clk 0:00:12.2]} 57. Ra1 {[%clk 0:00:19.7]} 57...
Rg4+ {[%clk 0:00:12.6]} 58. Kd3 {[%clk 0:00:19.3]} 58... Rg1 {[%clk 0:00:13.5]}
59. Ra8 {[%clk 0:00:17.4]} 59... h1=Q {[%clk 0:00:09.2]} 60. Rh8+ {[%clk
0:00:18.3]} 60... Kg2 {[%clk 0:00:09.5]} 61. Rxh1 {[%clk 0:00:18.5]} 61... Rxh1
{[%clk 0:00:09.5]} 62. Ke4 {[%clk 0:00:19.4]} 62... Rh3 {[%clk 0:00:10.2]} 63.
Kd5 {[%clk 0:00:20.3]} 63... Rg3 {[%clk 0:00:10.9]} 64. Ke6 {[%clk 0:00:21.2]}
64... Kf2 {[%clk 0:00:11.8]} 65. Kd6 {[%clk 0:00:22.1]} 65... Rf3 {[%clk
0:00:12.7]} 66. Kc6 {[%clk 0:00:23]} 66... Ke3 {[%clk 0:00:13.6]} 67. Kb5 {[%clk
0:00:23.7]} 67... Rf4 {[%clk 0:00:14.5]} 68. Kc5 {[%clk 0:00:24.3]} 68... Re4
{[%clk 0:00:15.4]} 69. Kd6 {[%clk 0:00:25]} 69... Kd4 {[%clk 0:00:16.3]} 70. Kc6
{[%clk 0:00:24.4]} 70... Re5 {[%clk 0:00:17.2]} 71. Kd6 {[%clk 0:00:22.8]} 71...
Ke4 {[%clk 0:00:16.7]} 72. Kc6 {[%clk 0:00:22.4]} 72... Kf5 {[%clk 0:00:17.6]}
73. Kd6 {[%clk 0:00:21.4]} 73... Kf6 {[%clk 0:00:17.8]} 74. Kc6 {[%clk
0:00:21.7]} 74... Ke6 {[%clk 0:00:18.7]} 75. Kc7 {[%clk 0:00:22]} 75... Rd5
{[%clk 0:00:18.8]} 76. Kc6 {[%clk 0:00:22.4]} 76... Re5 {[%clk 0:00:19.4]} 77.
Kc7 {[%clk 0:00:22.8]} 77... Rc5+ {[%clk 0:00:20.1]} 78. Kb6 {[%clk 0:00:22.9]}
78... Kd6 {[%clk 0:00:21]} 79. Kb7 {[%clk 0:00:23.5]} 79... Rb5+ {[%clk
0:00:21.3]} 80. Ka6 {[%clk 0:00:23.7]} 80... Kc6 {[%clk 0:00:21.3]} 81. Ka7
{[%clk 0:00:23.7]} 81... Re5 {[%clk 0:00:22.2]} 82. Kb8 {[%clk 0:00:23.3]} 82...
Ra5 {[%clk 0:00:20.4]} 83. Kc8 {[%clk 0:00:23.4]} 83... Ra8# {[%clk 0:00:19.6]}
0-1

[Event "Early-Titled-Tuesday-Blitz-August-29-2023"]
[Site "Chess.com"]
[Date "2023.08.29"]
[Round "6"]
[White "abhidabhi"]
[Black "tsaruk_maks"]
[Result "0-1"]
[WhiteElo "2895"]
[BlackElo "2764"]
[TimeControl "180+1"]
[EndTime "9:07:42 PDT"]
[Termination "tsaruk_maks won by resignation"]

1. Nf3 {[%clk 0:03:00.9]} 1... d5 {[%clk 0:02:56.6]} 2. c4 {[%clk 0:02:59.9]}
2... e6 {[%clk 0:02:55.4]} 3. g3 {[%clk 0:03:00.2]} 3... Nf6 {[%clk 0:02:55.7]}
4. Bg2 {[%clk 0:03:00.5]} 4... dxc4 {[%clk 0:02:53.6]} 5. Na3 {[%clk 0:02:56]}
5... Bxa3 {[%clk 0:02:51.7]} 6. bxa3 {[%clk 0:02:56.2]} 6... O-O {[%clk
0:02:52.3]} 7. Bb2 {[%clk 0:02:56.4]} 7... Nc6 {[%clk 0:02:51.2]} 8. Qc2 {[%clk
0:02:56.4]} 8... Re8 {[%clk 0:02:48.6]} 9. Qxc4 {[%clk 0:02:52.9]} 9... e5
{[%clk 0:02:48.9]} 10. O-O {[%clk 0:02:44.4]} 10... Be6 {[%clk 0:02:48.8]} 11.
Qc2 {[%clk 0:02:42.6]} 11... e4 {[%clk 0:02:44.2]} 12. Ne5 {[%clk 0:02:37.5]}
12... Bd5 {[%clk 0:02:38.3]} 13. Nxc6 {[%clk 0:02:30.7]} 13... Bxc6 {[%clk
0:02:39.2]} 14. Rad1 {[%clk 0:02:16.9]} 14... Qd7 {[%clk 0:02:31.4]} 15. Bxf6
{[%clk 0:02:16.2]} 15... gxf6 {[%clk 0:02:12.2]} 16. Qc3 {[%clk 0:02:14.5]}
16... Re5 {[%clk 0:02:02.4]} 17. d4 {[%clk 0:02:03.7]} 17... Rh5 {[%clk
0:01:59.7]} 18. d5 {[%clk 0:02:02.1]} 18... Rxd5 {[%clk 0:01:59.8]} 19. Rxd5
{[%clk 0:02:00.5]} 19... Qxd5 {[%clk 0:02:00.7]} 20. Qxf6 {[%clk 0:02:00.8]}
20... Re8 {[%clk 0:02:01.3]} 21. h4 {[%clk 0:01:59]} 21... Qe5 {[%clk
0:01:59.7]} 22. Qh6 {[%clk 0:01:54.7]} 22... Re6 {[%clk 0:01:59.3]} 23. Qe3
{[%clk 0:01:54.1]} 23... a6 {[%clk 0:01:48.7]} 24. Rc1 {[%clk 0:01:54]} 24...
Rd6 {[%clk 0:01:42.9]} 25. Rc5 {[%clk 0:01:52.7]} 25... Rd5 {[%clk 0:01:43.1]}
26. Rc4 {[%clk 0:01:52.8]} 26... f5 {[%clk 0:01:33.6]} 27. h5 {[%clk 0:01:34]}
27... Kf7 {[%clk 0:01:33.9]} 28. h6 {[%clk 0:01:34.1]} 28... Kg6 {[%clk
0:01:14.9]} 29. Rc1 {[%clk 0:01:30.4]} 29... Qd6 {[%clk 0:01:00.4]} 30. Kh2
{[%clk 0:01:10.7]} 30... Qf8 {[%clk 0:00:59.1]} 31. g4 {[%clk 0:00:53.4]} 31...
Qxh6+ {[%clk 0:00:52.3]} 32. Qxh6+ {[%clk 0:00:53.4]} 32... Kxh6 {[%clk
0:00:53.2]} 33. gxf5 {[%clk 0:00:53.9]} 33... Rxf5 {[%clk 0:00:54.1]} 34. Kg3
{[%clk 0:00:46.6]} 34... Rg5+ {[%clk 0:00:53.7]} 35. Kh2 {[%clk 0:00:46.2]}
35... Rb5 {[%clk 0:00:36.6]} 36. Rc2 {[%clk 0:00:37.3]} 36... Kg5 {[%clk
0:00:35.2]} 37. Rc3 {[%clk 0:00:25.5]} 37... Rb2 {[%clk 0:00:32.4]} 38. Rg3+
{[%clk 0:00:22.2]} 38... Kf6 {[%clk 0:00:31.3]} 39. Rh3 {[%clk 0:00:21.2]} 39...
Rxe2 {[%clk 0:00:29.4]} 40. Kg3 {[%clk 0:00:20.4]} 40... Kg7 {[%clk 0:00:19.8]}
41. Rh4 {[%clk 0:00:10.6]} 41... Rxa2 {[%clk 0:00:19.8]} 42. Rg4+ {[%clk
0:00:10.9]} 42... Kf6 {[%clk 0:00:19]} 43. Rh4 {[%clk 0:00:09.1]} 43... Rxa3+
{[%clk 0:00:18.2]} 44. Kf4 {[%clk 0:00:09.6]} 44... Ra2 {[%clk 0:00:05.5]} 45.
Ke3 {[%clk 0:00:09.4]} 45... a5 {[%clk 0:00:03.8]} 46. Rxh7 {[%clk 0:00:09.1]}
46... a4 {[%clk 0:00:04.2]} 47. Rxc7 {[%clk 0:00:07.3]} 47... Ke5 {[%clk
0:00:04.5]} 48. Re7+ {[%clk 0:00:06.8]} 48... Kd6 {[%clk 0:00:04.9]} 49. Rh7
{[%clk 0:00:05.4]} 49... Kc5 {[%clk 0:00:04.7]} 50. Rh5+ {[%clk 0:00:03.2]}
50... Kb4 {[%clk 0:00:04.8]} 51. Re5 {[%clk 0:00:03.1]} 51... a3 {[%clk
0:00:05.1]} 52. Bxe4 {[%clk 0:00:03.7]} 52... Bxe4 {[%clk 0:00:04.5]} 53. Rxe4+
{[%clk 0:00:04.6]} 53... Ka5 {[%clk 0:00:04.4]} 54. Re5+ {[%clk 0:00:04.5]}
54... b5 {[%clk 0:00:04.7]} 55. Re8 {[%clk 0:00:04.5]} 55... Rc2 {[%clk
0:00:04.4]} 56. Ra8+ {[%clk 0:00:04.5]} 56... Kb4 {[%clk 0:00:04.9]} 57. f4
{[%clk 0:00:05.1]} 57... Kb3 {[%clk 0:00:05.4]} 58. f5 {[%clk 0:00:05.1]} 58...
b4 {[%clk 0:00:05.9]} 59. f6 {[%clk 0:00:05.5]} 59... Rc7 {[%clk 0:00:05.8]} 60.
Ke4 {[%clk 0:00:06.1]} 60... Kb2 {[%clk 0:00:05.4]} 61. Ke5 {[%clk 0:00:06.5]}
61... a2 {[%clk 0:00:05.7]} 62. Rb8 {[%clk 0:00:05.5]} 62... b3 {[%clk
0:00:05.7]} 0-1

[Event "Early-Titled-Tuesday-Blitz-August-29-2023"]
[Site "Chess.com"]
[Date "2023.08.29"]
[Round "6"]
[White "MetiForce"]
[Black "GMG"]
[Result "0-1"]
[WhiteElo "2892"]
[BlackElo "2733"]
[TimeControl "180+1"]
[EndTime "9:07:44 PDT"]
[Termination "GMG won by checkmate"]

1. d4 {[%clk 0:02:55.7]} 1... d5 {[%clk 0:02:59.5]} 2. c4 {[%clk 0:02:56]} 2...
c6 {[%clk 0:02:59.9]} 3. Nf3 {[%clk 0:02:55.5]} 3... e6 {[%clk 0:03:00.5]} 4. e3
{[%clk 0:02:52.4]} 4... Bd6 {[%clk 0:02:58.5]} 5. b3 {[%clk 0:02:52.1]} 5... Nf6
{[%clk 0:02:53.9]} 6. Bb2 {[%clk 0:02:52.2]} 6... Ne4 {[%clk 0:02:53.9]} 7. Nbd2
{[%clk 0:02:50.2]} 7... f5 {[%clk 0:02:53]} 8. Bd3 {[%clk 0:02:48.6]} 8... Nd7
{[%clk 0:02:50.2]} 9. O-O {[%clk 0:02:46.5]} 9... Qf6 {[%clk 0:02:50.3]} 10. Ne1
{[%clk 0:02:40.8]} 10... Qh6 {[%clk 0:02:45]} 11. f4 {[%clk 0:02:29.7]} 11... g5
{[%clk 0:02:43.8]} 12. g3 {[%clk 0:02:12.4]} 12... gxf4 {[%clk 0:02:32.4]} 13.
exf4 {[%clk 0:02:11.6]} 13... Ndf6 {[%clk 0:02:30.9]} 14. Nxe4 {[%clk
0:01:51.9]} 14... fxe4 {[%clk 0:02:27.4]} 15. Be2 {[%clk 0:01:51.9]} 15... Rg8
{[%clk 0:02:23.4]} 16. Ng2 {[%clk 0:01:51.6]} 16... Bd7 {[%clk 0:02:12]} 17. a4
{[%clk 0:01:42.9]} 17... Qh3 {[%clk 0:02:06.8]} 18. Ne3 {[%clk 0:01:40.4]} 18...
O-O-O {[%clk 0:01:52]} 19. Rf2 {[%clk 0:01:35.4]} 19... Rxg3+ {[%clk 0:01:30.3]}
20. hxg3 {[%clk 0:01:34]} 20... Qxg3+ {[%clk 0:01:31.2]} 21. Ng2 {[%clk
0:01:33.9]} 21... Rg8 {[%clk 0:01:31.6]} 22. Bc1 {[%clk 0:01:02.9]} 22... e3
{[%clk 0:01:16.2]} 23. Bxe3 {[%clk 0:01:02.6]} 23... Qxe3 {[%clk 0:01:17.1]} 24.
Qd3 {[%clk 0:01:02.8]} 24... Bxf4 {[%clk 0:01:10.3]} 25. Kf1 {[%clk 0:00:55.9]}
25... Qxd3 {[%clk 0:00:48]} 26. Bxd3 {[%clk 0:00:56.8]} 26... Bg5 {[%clk
0:00:48.6]} 27. Re1 {[%clk 0:00:55.1]} 27... Kd8 {[%clk 0:00:37.2]} 28. Rf3
{[%clk 0:00:39.5]} 28... Ke7 {[%clk 0:00:32.5]} 29. Nf4 {[%clk 0:00:34.3]} 29...
Ng4 {[%clk 0:00:27]} 30. Ke2 {[%clk 0:00:33.7]} 30... Rf8 {[%clk 0:00:20.7]} 31.
Rg1 {[%clk 0:00:23.7]} 31... e5 {[%clk 0:00:16.4]} 32. Nh3 {[%clk 0:00:05.9]}
32... Rxf3 {[%clk 0:00:15.9]} 33. Kxf3 {[%clk 0:00:06.8]} 33... e4+ {[%clk
0:00:15.5]} 34. Kg3 {[%clk 0:00:04.4]} 34... Be3 {[%clk 0:00:14]} 35. Be2 {[%clk
0:00:04.9]} 35... Bxg1 {[%clk 0:00:11.8]} 36. Nxg1 {[%clk 0:00:05.8]} 36... Ne3
{[%clk 0:00:10.7]} 37. Kf4 {[%clk 0:00:06.1]} 37... Nf5 {[%clk 0:00:10.1]} 38.
Ke5 {[%clk 0:00:06.2]} 38... Be6 {[%clk 0:00:07.5]} 39. Bd1 {[%clk 0:00:04.3]}
39... Nd6 {[%clk 0:00:07]} 40. c5 {[%clk 0:00:04]} 40... Nf7+ {[%clk 0:00:07.1]}
41. Kf4 {[%clk 0:00:04.6]} 41... Kf6 {[%clk 0:00:07.6]} 42. Ne2 {[%clk 0:00:05]}
42... Nh8 {[%clk 0:00:07.8]} 43. Ng3 {[%clk 0:00:04.7]} 43... Ng6+ {[%clk
0:00:08.3]} 44. Ke3 {[%clk 0:00:05.5]} 44... Kg5 {[%clk 0:00:08.6]} 45. Nh5
{[%clk 0:00:05.3]} 45... Bd7 {[%clk 0:00:08.4]} 46. b4 {[%clk 0:00:04]} 46...
Nh4 {[%clk 0:00:08.5]} 47. Ng3 {[%clk 0:00:02.7]} 47... Nf5+ {[%clk 0:00:08.3]}
48. Nxf5 {[%clk 0:00:03]} 48... Bxf5 {[%clk 0:00:09.2]} 49. b5 {[%clk
0:00:03.5]} 49... Bd7 {[%clk 0:00:07.8]} 50. Be2 {[%clk 0:00:03.9]} 50... h5
{[%clk 0:00:07.7]} 51. b6 {[%clk 0:00:01.8]} 51... a5 {[%clk 0:00:06]} 52. Kf2
{[%clk 0:00:02.1]} 52... h4 {[%clk 0:00:05.9]} 53. Bf1 {[%clk 0:00:02.5]} 53...
Kf4 {[%clk 0:00:04.3]} 54. Ba6 {[%clk 0:00:02.1]} 54... e3+ {[%clk 0:00:04.1]}
55. Ke2 {[%clk 0:00:01.6]} 55... Bc8 {[%clk 0:00:04.1]} 56. Bd3 {[%clk
0:00:01.4]} 56... h3 {[%clk 0:00:04.7]} 57. Kf1 {[%clk 0:00:02.1]} 57... Kg3
{[%clk 0:00:04.3]} 58. Kg1 {[%clk 0:00:02.5]} 58... h2+ {[%clk 0:00:04.4]} 59.
Kh1 {[%clk 0:00:03.1]} 59... Bg4 {[%clk 0:00:04.2]} 60. Be2 {[%clk 0:00:03.9]}
60... Bf3+ {[%clk 0:00:04.5]} 61. Bxf3 {[%clk 0:00:04.5]} 61... Kxf3 {[%clk
0:00:05.4]} 62. Kxh2 {[%clk 0:00:04.8]} 62... e2 {[%clk 0:00:06.3]} 63. Kh3
{[%clk 0:00:04.3]} 63... e1=Q {[%clk 0:00:06.6]} 64. Kh2 {[%clk 0:00:05.2]}
64... Qe8 {[%clk 0:00:05.3]} 65. Kh1 {[%clk 0:00:06.1]} 65... Qg8 {[%clk
0:00:05.7]} 66. Kh2 {[%clk 0:00:06.4]} 66... Qg2# {[%clk 0:00:06.6]} 0-1

[Event "Early-Titled-Tuesday-Blitz-August-29-2023"]
[Site "Chess.com"]
[Date "2023.08.29"]
[Round "6"]
[White "reevecanada"]
[Black "Itk04"]
[Result "1/2-1/2"]
[WhiteElo "2517"]
[BlackElo "2665"]
[TimeControl "180+1"]
[EndTime "9:08:07 PDT"]
[Termination "Game drawn - insufficient material"]

1. e4 {[%clk 0:02:59.1]} 1... e6 {[%clk 0:02:54.2]} 2. Nf3 {[%clk 0:02:58.4]}
2... d5 {[%clk 0:02:53.7]} 3. Nc3 {[%clk 0:02:58.1]} 3... c6 {[%clk 0:02:50.3]}
4. d4 {[%clk 0:02:56.6]} 4... Nd7 {[%clk 0:02:46.5]} 5. a3 {[%clk 0:02:50]} 5...
a5 {[%clk 0:02:32.4]} 6. g3 {[%clk 0:02:43.8]} 6... Be7 {[%clk 0:02:02.9]} 7.
Bg2 {[%clk 0:02:42.3]} 7... dxe4 {[%clk 0:02:01]} 8. Nxe4 {[%clk 0:02:41.6]}
8... Ngf6 {[%clk 0:02:01.9]} 9. Nfd2 {[%clk 0:02:33.3]} 9... O-O {[%clk
0:02:00.9]} 10. O-O {[%clk 0:02:31.7]} 10... Nxe4 {[%clk 0:01:59.4]} 11. Nxe4
{[%clk 0:02:29.3]} 11... Nf6 {[%clk 0:02:00.3]} 12. Nc5 {[%clk 0:02:27.8]} 12...
b6 {[%clk 0:01:49.7]} 13. Nd3 {[%clk 0:02:26]} 13... Ba6 {[%clk 0:01:31.1]} 14.
Ne5 {[%clk 0:02:00.8]} 14... Bxf1 {[%clk 0:01:01]} 15. Nxc6 {[%clk 0:01:58.7]}
15... Qe8 {[%clk 0:00:57.9]} 16. Nxe7+ {[%clk 0:01:57.9]} 16... Qxe7 {[%clk
0:00:58.2]} 17. Bxa8 {[%clk 0:01:57.9]} 17... Rxa8 {[%clk 0:00:37]} 18. Qxf1
{[%clk 0:01:56.7]} 18... Rc8 {[%clk 0:00:37.9]} 19. c3 {[%clk 0:01:56.1]} 19...
e5 {[%clk 0:00:26.3]} 20. Qe2 {[%clk 0:01:53]} 20... Nd7 {[%clk 0:00:13.5]} 21.
dxe5 {[%clk 0:01:52.2]} 21... Nxe5 {[%clk 0:00:10.1]} 22. Bf4 {[%clk 0:01:51.3]}
22... f6 {[%clk 0:00:04.4]} 23. Re1 {[%clk 0:01:48.2]} 23... Nf3+ {[%clk
0:00:03.6]} 24. Kh1 {[%clk 0:01:47.1]} 24... Qxe2 {[%clk 0:00:02.9]} 25. Rxe2
{[%clk 0:01:46.5]} 25... g5 {[%clk 0:00:03.8]} 26. Be3 {[%clk 0:01:36.6]} 26...
g4 {[%clk 0:00:02.8]} 27. Bxb6 {[%clk 0:01:34.3]} 27... a4 {[%clk 0:00:01.7]}
28. Kg2 {[%clk 0:01:29.1]} 28... h5 {[%clk 0:00:02]} 29. h3 {[%clk 0:01:24.8]}
29... Kf7 {[%clk 0:00:01.8]} 30. Bd4 {[%clk 0:01:22.5]} 30... f5 {[%clk
0:00:01.5]} 31. Re3 {[%clk 0:01:16.7]} 31... Rb8 {[%clk 0:00:02]} 32. Re2 {[%clk
0:01:15.1]} 32... Rc8 {[%clk 0:00:02.1]} 33. h4 {[%clk 0:00:50.1]} 33... Rc4
{[%clk 0:00:02.5]} 34. Bb6 {[%clk 0:00:47.2]} 34... Rc6 {[%clk 0:00:03]} 35. Bd4
{[%clk 0:00:36.5]} 35... Re6 {[%clk 0:00:02.4]} 36. Rxe6 {[%clk 0:00:33.5]}
36... Kxe6 {[%clk 0:00:03.3]} 37. Kf1 {[%clk 0:00:33.7]} 37... Nd2+ {[%clk
0:00:02.3]} 38. Ke2 {[%clk 0:00:33.3]} 38... Nc4 {[%clk 0:00:03.2]} 39. Bc5
{[%clk 0:00:24.5]} 39... Kd5 {[%clk 0:00:03.1]} 40. Bb4 {[%clk 0:00:22.6]} 40...
Ke4 {[%clk 0:00:03.4]} 41. Be7 {[%clk 0:00:17.3]} 41... Nxb2 {[%clk 0:00:03.5]}
42. Bg5 {[%clk 0:00:17.5]} 42... Nc4 {[%clk 0:00:04]} 43. Bc1 {[%clk 0:00:18.1]}
43... Ne5 {[%clk 0:00:03.1]} 44. Be3 {[%clk 0:00:15.6]} 44... Nc4 {[%clk
0:00:03.3]} 45. Bc5 {[%clk 0:00:16.2]} 45... Kd5 {[%clk 0:00:03.4]} 46. Bf8
{[%clk 0:00:13.9]} 46... Ke4 {[%clk 0:00:03.6]} 47. Bb4 {[%clk 0:00:14.5]} 47...
f4 {[%clk 0:00:04.1]} 48. gxf4 {[%clk 0:00:13.5]} 48... Kxf4 {[%clk 0:00:04.4]}
49. Kd3 {[%clk 0:00:14]} 49... Nb2+ {[%clk 0:00:04.2]} 50. Kd4 {[%clk
0:00:14.1]} 50... Kf3 {[%clk 0:00:02.9]} 51. c4 {[%clk 0:00:14.7]} 51... Nxc4
{[%clk 0:00:03.2]} 52. Kxc4 {[%clk 0:00:15.6]} 52... Kxf2 {[%clk 0:00:04.1]} 53.
Bc5+ {[%clk 0:00:14.3]} 53... Kg3 {[%clk 0:00:04.3]} 54. Kb4 {[%clk 0:00:14.4]}
54... Kxh4 {[%clk 0:00:04.9]} 55. Kxa4 {[%clk 0:00:15.1]} 55... Kg3 {[%clk
0:00:03.4]} 56. Kb5 {[%clk 0:00:15.6]} 56... h4 {[%clk 0:00:04.1]} 57. a4 {[%clk
0:00:15.8]} 57... h3 {[%clk 0:00:04.9]} 58. a5 {[%clk 0:00:16.1]} 58... h2
{[%clk 0:00:04.5]} 59. Bd6+ {[%clk 0:00:14.6]} 59... Kh3 {[%clk 0:00:04.8]} 60.
Bxh2 {[%clk 0:00:14.4]} 60... Kxh2 {[%clk 0:00:05.7]} 61. a6 {[%clk 0:00:14.7]}
61... g3 {[%clk 0:00:06.6]} 62. a7 {[%clk 0:00:15.5]} 62... g2 {[%clk
0:00:07.5]} 63. a8=Q {[%clk 0:00:14.9]} 63... g1=Q {[%clk 0:00:08.4]} 64. Qh8+
{[%clk 0:00:15.4]} 64... Kg2 {[%clk 0:00:08.9]} 65. Kc4 {[%clk 0:00:15.1]} 65...
Qc1+ {[%clk 0:00:06.5]} 66. Kd5 {[%clk 0:00:15.6]} 66... Qd1+ {[%clk 0:00:04.5]}
67. Ke6 {[%clk 0:00:15.5]} 67... Qg4+ {[%clk 0:00:04.6]} 68. Ke5 {[%clk
0:00:14.5]} 68... Qg3+ {[%clk 0:00:04.2]} 69. Kd5 {[%clk 0:00:14.5]} 69... Qb3+
{[%clk 0:00:04.2]} 70. Ke4 {[%clk 0:00:13]} 70... Qc2+ {[%clk 0:00:04.9]} 71.
Kf4 {[%clk 0:00:12.3]} 71... Qd2+ {[%clk 0:00:05.3]} 72. Kf5 {[%clk 0:00:11.5]}
72... Qd3+ {[%clk 0:00:05.7]} 73. Kg5 {[%clk 0:00:11.7]} 73... Qg3+ {[%clk
0:00:05.7]} 74. Kf5 {[%clk 0:00:08.8]} 74... Qf3+ {[%clk 0:00:05.8]} 75. Kg5
{[%clk 0:00:08.3]} 75... Qg3+ {[%clk 0:00:05.8]} 76. Kh6 {[%clk 0:00:08.2]}
76... Qh4+ {[%clk 0:00:05.5]} 77. Kg7 {[%clk 0:00:09.1]} 77... Qd4+ {[%clk
0:00:05.6]} 78. Kh7 {[%clk 0:00:09.1]} 78... Qd7+ {[%clk 0:00:06]} 79. Qg7+
{[%clk 0:00:07.9]} 79... Qxg7+ {[%clk 0:00:06.7]} 80. Kxg7 {[%clk 0:00:08.8]}
1/2-1/2